fUST/lending_fUST_20250301
["ID","MTS","AMOUNT","RATE_DAILY","PERIOD"]
[354924651,1740822635768,-500.0,0.00029999,2]
[354924652,1740822635778,-500.0,0.00029999,2]
[354924653,1740822635787,-357.79870385,0.00029999,2]
[354924663,1740822638192,-142.20129615,0.00029999,2]
[354924664,1740822638201,-500.0,0.00029999,2]
[354924665,1740822638211,-500.0,0.00029999,2]
[354924666,1740822638221,-500.0,0.00029999,2]
[354924667,1740822638230,-500.0,0.00029999,2]
[354924668,1740822638239,-500.0,0.00029999,2]
[354924669,1740822638249,-500.0,0.00029999,2]
[354924670,1740822638258,-257.94695468,0.00029999,2]
[354924671,1740822638267,-500.0,0.00029999,2]
[354924672,1740822638277,-67193.91469676,0.0003,2]
[354924699,1740822642918,-773.48990599,0.0003,2]
[354924700,1740822642950,-35.94044065,0.0003,2]
[354924701,1740822643059,-5000.0,0.0003,2]
[354924702,1740822646376,-69143.07286731,0.0003,2]
[354924703,1740822646386,-500.0,0.0003,5]
[354924704,1740822646396,-153.631028,0.0003062,15]
[354924705,1740822646406,-320.22460741,0.00030624,5]
[354924706,1740822646415,-153.631028,0.00031258,15]
[354924707,1740822646426,-320.22460741,0.00031348,6]
[354924708,1740822646440,-262.51191208,0.00031507,30]
[354924709,1740822646450,-262.51191208,0.00031808,30]
[354924710,1740822646460,-153.631028,0.00031897,15]
[354924711,1740822646471,-320.22460741,0.00032072,6]
[354924712,1740822646481,-262.51191208,0.00032082,30]
[354924713,1740822646491,-858.4171279,0.00032219,4]
[354924714,1740822646500,-420.0,0.00032332,2]
[354924715,1740822646511,-262.51191208,0.00032384,30]
[354924716,1740822646521,-153.631028,0.00032536,15]
[354924717,1740822646530,-262.51191208,0.00032685,30]
[354924718,1740822646540,-153.631028,0.00032727,14]
[354924719,1740822646549,-253.78630485,0.00032775,2]
[354924720,1740822646559,-3000.0,0.00032776,2]
[354924721,1740822646569,-27295.33713356,0.00032776,2]
[354924722,1740822646723,-2381.340614,0.00032776,2]
[354924727,1740822954047,-300.0,0.00029142,2]
[354924728,1740822954070,-24900.0,0.00029143,2]
[354924729,1740822954092,-3392.23601973,0.00029897,2]
[354924730,1740822954115,-250.0,0.00029997,2]
[354924731,1740822954138,-500.0,0.00029997,2]
[354924732,1740822954162,-153.0,0.00029997,2]
[354924733,1740822954187,-587.84271507,0.00029997,2]
[354924734,1740822954210,-500.0,0.00029997,2]
[354924735,1740822954236,-587.84271507,0.00029997,2]
[354924736,1740822954260,-500.0,0.00029997,2]
[354924737,1740822954284,-587.84271507,0.00029997,2]
[354924738,1740822954310,-500.0,0.00029997,2]
[354924739,1740822954334,-587.84271507,0.00029997,2]
[354924740,1740822954358,-587.84271507,0.00029997,2]
[354924741,1740822954382,-500.0,0.00029997,2]
[354924742,1740822954406,-587.84271507,0.00029997,2]
[354924743,1740822954430,-500.0,0.00029997,2]
[354924744,1740822954453,-587.84271507,0.00029997,2]
[354924745,1740822954476,-500.0,0.00029997,2]
[354924746,1740822954500,-587.84271507,0.00029997,2]
[354924747,1740822954524,-500.0,0.00029997,2]
[354924748,1740822954551,-587.84271507,0.00029997,2]
[354924749,1740822954575,-587.84271507,0.00029997,2]
[354924750,1740822954600,-500.0,0.00029997,2]
[354924751,1740822954625,-587.84271507,0.00029997,2]
[354924752,1740822954648,-587.84271507,0.00029997,2]
[354924753,1740822954672,-587.84271507,0.00029997,2]
[354924754,1740822954695,-587.84271507,0.00029997,2]
[354924755,1740822954719,-587.84271507,0.00029997,2]
[354924756,1740822954744,-587.84271507,0.00029997,2]
[354924757,1740822954768,-587.84271507,0.00029997,2]
[354924758,1740822954807,-587.84271507,0.00029997,2]
[354924759,1740822954832,-587.84271507,0.00029997,2]
[354924760,1740822954857,-587.84271507,0.00029997,2]
[354924761,1740822955286,-587.84271507,0.00029997,2]
[354924762,1740822955316,-587.84271507,0.00029997,2]
[354924763,1740822955342,-587.84271507,0.00029997,2]
[354924764,1740822955369,-587.84271507,0.00029997,2]
[354924765,1740822955397,-587.84271507,0.00029997,2]
[354924766,1740822955423,-587.84271507,0.00029997,2]
[354924767,1740822955448,-587.84271507,0.00029997,2]
[354924768,1740822955474,-587.84271507,0.00029997,2]
[354924769,1740822955499,-587.84271507,0.00029997,2]
[354924770,1740822955524,-587.84271507,0.00029997,2]
[354924771,1740822955553,-587.84271507,0.00029997,2]
[354924772,1740822955578,-587.84271507,0.00029997,2]
[354924773,1740822955602,-587.84271507,0.00029997,2]
[354924774,1740822955630,-587.84271507,0.00029997,2]
[354924775,1740822955655,-587.84271507,0.00029997,2]
[354924776,1740822955679,-587.84271507,0.00029997,2]
[354924777,1740822955704,-587.84271507,0.00029997,2]
[354924778,1740822955729,-587.84271507,0.00029997,2]
[354924779,1740822955754,-587.84271507,0.00029997,2]
[354924780,1740822955779,-587.84271507,0.00029997,2]
[354924781,1740822955805,-587.84271507,0.00029997,2]
[354924782,1740822955829,-587.84271507,0.00029997,2]
[354924783,1740822955854,-587.84271507,0.00029997,2]
[354924784,1740822955879,-587.84271507,0.00029997,2]
[354924785,1740822955904,-587.84271507,0.00029997,2]
[354924786,1740822955928,-587.84271507,0.00029997,2]
[354924787,1740822955953,-587.84271507,0.00029997,2]
[354924788,1740822955978,-587.84271507,0.00029997,2]
[354924789,1740822956003,-587.84271507,0.00029997,2]
[354924790,1740822956027,-587.84271507,0.00029997,2]
[354924791,1740822956052,-587.84271507,0.00029997,2]
[354924792,1740822956077,-587.84271507,0.00029997,2]
[354924793,1740822956102,-587.84271507,0.00029997,2]
[354924794,1740822956127,-587.84271507,0.00029997,2]
[354924795,1740822956151,-587.84271507,0.00029997,2]
[354924796,1740822956177,-587.84271507,0.00029997,2]
[354924797,1740822956202,-587.84271507,0.00029997,2]
[354924798,1740822956227,-587.84271507,0.00029997,2]
[354924799,1740822956253,-587.84271507,0.00029997,2]
[354924800,1740822956279,-587.84271507,0.00029997,2]
[354924801,1740822956304,-587.84271507,0.00029997,2]
[354924802,1740822956332,-568.24795791,0.00029997,2]
[354924803,1740822956357,-568.24795791,0.00029997,2]
[354924804,1740822956382,-568.24795791,0.00029997,2]
[354924805,1740822956407,-568.24795791,0.00029997,2]
[354924806,1740822956432,-568.24795791,0.00029997,2]
[354924807,1740822956458,-568.24795791,0.00029997,2]
[354924808,1740822956484,-568.24795791,0.00029997,2]
[354924809,1740822956510,-568.24795791,0.00029997,2]
[354924810,1740822956538,-568.24795791,0.00029997,2]
[354924811,1740822956565,-568.24795791,0.00029997,2]
[354924812,1740822956592,-568.24795791,0.00029997,2]
[354924813,1740822956618,-568.24795791,0.00029997,2]
[354924814,1740822956643,-568.24795791,0.00029997,2]
[354924815,1740822956667,-568.24795791,0.00029997,2]
[354924816,1740822956692,-568.24795791,0.00029997,2]
[354924817,1740822956719,-568.24795791,0.00029997,2]
[354924818,1740822956743,-568.24795791,0.00029997,2]
[354924819,1740822956768,-568.24795791,0.00029997,2]
[354924820,1740822956793,-568.24795791,0.00029997,2]
[354924821,1740822956817,-568.24795791,0.00029997,2]
[354924822,1740822956841,-568.24795791,0.00029997,2]
[354924823,1740822956865,-568.24795791,0.00029997,2]
[354924824,1740822956890,-568.24795791,0.00029997,2]
[354924825,1740822956915,-568.24795791,0.00029997,2]
[354924826,1740822956939,-568.24795791,0.00029997,2]
[354924827,1740822956965,-568.24795791,0.00029997,2]
[354924828,1740822956990,-568.24795791,0.00029997,2]
[354924829,1740822957013,-280.73302344,0.00030676,2]
[354924830,1740822957035,-3392.2360197,0.00030817,2]
[354924831,1740822957059,-277.52799334,0.000309,5]
[354924832,1740822957084,-277.52799308,0.00031314,6]
[354924833,1740822957106,-420.0,0.00031436,2]
[354924834,1740822957131,-277.52799308,0.00031728,6]
[354924835,1740822957154,-2378.11047479,0.00031737,2]
[354924871,1740823301471,1000.0,0.0003,10]
[354924872,1740823356467,500.0,0.00028,30]
[354924873,1740823356794,500.0,0.00028,30]
[354924874,1740823357715,500.0,0.00028,30]
[354924875,1740823358383,500.0,0.00028,30]
[354924876,1740823358509,500.0,0.00028,30]
[354924877,1740823359398,873.32116532,0.00028,30]
[354924880,1740823552139,-403.80855914,0.00030676,2]
[354924881,1740823552160,-3596.3569712,0.00030773,2]
[354924882,1740823552181,-400.0,0.00030999,2]
[354924883,1740823552201,-420.92746411,0.00031,10]
[354924884,1740823552223,-500.0,0.00031,10]
[354924885,1740823552244,-500.0,0.00031,10]
[354924886,1740823552266,-500.0,0.00031,10]
[354924887,1740823552287,-500.0,0.00031,10]
[354924888,1740823552309,-500.0,0.00031,10]
[354924889,1740823552336,-500.0,0.00031,10]
[354924890,1740823552358,-500.0,0.00031,10]
[354924891,1740823552378,-10000.0,0.00031039,2]
[354924892,1740823552399,-2000.0,0.000315,2]
[354924893,1740823552419,-2000.0,0.000316,2]
[354924894,1740823552440,-2000.0,0.000317,2]
[354924895,1740823552460,-2000.0,0.000318,2]
[354924896,1740823552480,-2000.0,0.000319,2]
[354924897,1740823552503,-284.05223795,0.000319,6]
[354924898,1740823552523,-2053.07,0.00032,3]
[354924899,1740823552543,-2246.91320547,0.00032118,2]
[354924900,1740823552564,-643.8128459,0.00032218,4]
[354924901,1740823552590,-284.05223792,0.00032279,6]
[354924902,1740823552610,-2114.29,0.000325,2]
[354924903,1740823552633,-284.05223792,0.00032659,6]
[354924904,1740823552655,-198.636015,0.00032676,2]
[354924905,1740823552675,-1506.29707077,0.000327,2]
[354924906,1740823552696,-2246.91320542,0.00032721,2]
[354924907,1740823552718,-547.64,0.00032766,3]
[354924908,1740823552742,-500.0,0.00032775,2]
[354924909,1740823552765,-517.0,0.00032775,2]
[354924910,1740823552789,-500.0,0.00032775,2]
[354924911,1740823552815,-500.0,0.00032775,2]
[354924912,1740823552840,-500.0,0.00032775,2]
[354924913,1740823552862,-500.0,0.00032775,2]
[354924914,1740823552885,-500.0,0.00032775,2]
[354924915,1740823552908,-500.0,0.00032775,2]
[354924916,1740823552931,-500.0,0.00032775,2]
[354924917,1740823552953,-500.0,0.00032775,2]
[354924918,1740823552975,-500.0,0.00032775,2]
[354924919,1740823552998,-500.0,0.00032775,2]
[354924920,1740823553020,-324.853922,0.00032775,2]
[354924921,1740823553043,-500.0,0.00032775,2]
[354924922,1740823553068,-500.0,0.00032775,2]
[354924923,1740823553091,-387.933,0.00032775,33]
[354924924,1740823553112,-106750.6363072,0.00032776,2]
[354924925,1740823557094,-85572.68594524,0.00032776,2]
[354924926,1740823557117,-3000.0,0.00032776,2]
[354924927,1740823557138,-500.0,0.00032776,7]
[354924928,1740823557159,-150.0,0.000328,32]
[354924929,1740823557181,-10517.32724445,0.00032811,2]
[354924930,1740823557202,-350.0,0.00032826,7]
[354924931,1740823557223,-500.0,0.00032856,2]
[354924932,1740823557245,-500.0,0.00032873,5]
[354924933,1740823557267,-500.0,0.00032873,5]
[354924934,1740823557288,-500.0,0.00032873,5]
[354924935,1740823557310,-500.0,0.00032873,5]
[354924936,1740823557333,-500.0,0.00032873,5]
[354924937,1740823557354,-500.0,0.00032873,5]
[354924938,1740823557375,-500.0,0.00032873,5]
[354924939,1740823557396,-500.0,0.00032873,5]
[354924940,1740823557417,-543.89531724,0.00032873,5]
[354924941,1740823557438,-500.0,0.00032873,5]
[354924942,1740823557460,-500.0,0.00032873,5]
[354924943,1740823557480,-500.0,0.00032873,5]
[354924944,1740823557501,-500.0,0.00032873,5]
[354924945,1740823557521,-500.0,0.00032873,5]
[354924946,1740823557543,-500.0,0.00032873,5]
[354924947,1740823557563,-500.0,0.00032873,5]
[354924948,1740823557587,-500.0,0.00032873,5]
[354924949,1740823557608,-500.0,0.00032873,5]
[354924950,1740823557629,-500.0,0.00032873,5]
[354924951,1740823557649,-500.0,0.00032873,3]
[354924952,1740823557670,-212.69996757,0.00032875,2]
[354924953,1740823557691,-500.0,0.00032875,2]
[354924954,1740823557711,-231.72959031,0.00032875,2]
[354924955,1740823557739,-500.0,0.00032875,2]
[354924956,1740823557762,-207.47780324,0.00032875,2]
[354924957,1740823557784,-335.1931403,0.00032875,2]
[354924958,1740823557807,-368.21608309,0.00032875,2]
[354924959,1740823557830,-370.19023277,0.00032875,2]
[354924960,1740823557851,-151.0,0.00032875,2]
[354924961,1740823557872,-18860.93360742,0.00032876,15]
[354924962,1740823557895,-56280.56284954,0.00032876,15]
[354924965,1740823626309,-250.0,0.000304,30]
[354924966,1740823626331,-403.80855914,0.00030776,2]
[354924967,1740823626354,-433.7023,0.00031656,2]
[354924968,1740823626377,-400.0,0.00031671,2]
[354924969,1740823626401,-1444.60055483,0.00031672,2]
[354924970,1740823627117,-10281.77966397,0.00031672,2]
[354924971,1740823627140,-643.8128459,0.00032218,4]
[354924972,1740823627162,-250.0,0.000324,30]
[354924973,1740823627184,-434.20525171,0.00032776,2]
[354924974,1740823627206,-547.64,0.00032866,3]
[354924975,1740823627228,-267.74917364,0.00032873,5]
[354924976,1740823627250,-500.0,0.00032873,5]
[354924977,1740823627271,-464.28565197,0.00032873,5]
[354924978,1740823627293,-500.0,0.00032873,5]
[354924979,1740823627317,-517.0,0.00032875,2]
[354924980,1740823627341,-500.0,0.00032875,2]
[354924981,1740823627364,-500.0,0.00032875,2]
[354924982,1740823627389,-500.0,0.00032875,2]
[354924983,1740823627413,-500.0,0.00032875,2]
[354924984,1740823627437,-500.0,0.00032875,2]
[354924985,1740823627460,-500.0,0.00032875,2]
[354924986,1740823627483,-500.0,0.00032875,2]
[354924987,1740823627506,-500.0,0.00032875,2]
[354924988,1740823627530,-500.0,0.00032875,2]
[354924989,1740823627553,-500.0,0.00032875,2]
[354924990,1740823627576,-500.0,0.00032875,2]
[354924991,1740823627600,-500.0,0.00032875,2]
[354924992,1740823627623,-324.853922,0.00032875,2]
[354924993,1740823627646,-500.0,0.00032875,2]
[354924994,1740823627668,-308.49186064,0.00032875,2]
[354924995,1740823627690,-302.0,0.00032875,2]
[354924996,1740823627713,-63247.97601241,0.00032876,15]
[354924997,1740823627734,-151.0,0.00032876,7]
[354924998,1740823627759,-151.0,0.00032876,7]
[354924999,1740823627782,-151.0,0.00032876,7]
[354925000,1740823627805,-151.0,0.00032876,7]
[354925001,1740823627827,-151.0,0.00032876,7]
[354925002,1740823627848,-151.0,0.00032876,7]
[354925003,1740823627869,-151.0,0.00032876,7]
[354925004,1740823627892,-151.849832,0.00032876,7]
[354925005,1740823627913,-333.544804,0.00032876,7]
[354925006,1740823627934,-333.544804,0.00032876,7]
[354925007,1740823627956,-333.544804,0.00032876,7]
[354925008,1740823627978,-333.544804,0.00032876,7]
[354925009,1740823628000,-333.544804,0.00032876,7]
[354925010,1740823628021,-333.544804,0.00032876,7]
[354925011,1740823628043,-333.544804,0.00032876,7]
[354925012,1740823628064,-333.544804,0.00032876,7]
[354925013,1740823628085,-315.612692,0.00032876,7]
[354925014,1740823628106,-315.612692,0.00032876,7]
[354925015,1740823628129,-315.612692,0.00032876,7]
[354925016,1740823628152,-315.612692,0.00032876,7]
[354925017,1740823628174,-315.612692,0.00032876,7]
[354925018,1740823628195,-315.612692,0.00032876,7]
[354925019,1740823628217,-315.612692,0.00032876,7]
[354925020,1740823628240,-315.612692,0.00032876,7]
[354925021,1740823628263,-151.0,0.00032876,7]
[354925022,1740823628284,-151.0,0.00032876,7]
[354925023,1740823628306,-160.871652,0.00032876,7]
[354925024,1740823628328,-173.954304,0.00032876,7]
[354925025,1740823628350,-151.0,0.00032876,7]
[354925026,1740823628372,-151.0,0.00032876,7]
[354925027,1740823628393,-151.0,0.00032876,7]
[354925028,1740823628415,-167.323221,0.00032876,7]
[354925029,1740823628436,-167.323221,0.00032876,7]
[354925030,1740823628459,-167.323221,0.00032876,7]
[354925031,1740823628480,-167.323221,0.00032876,7]
[354925032,1740823628502,-151.0,0.00032876,7]
[354925033,1740823628523,-500.0,0.00032876,2]
[354925034,1740823628545,-407.71982037,0.00032876,2]
[354925035,1740823628566,-500.0,0.00032876,2]
[354925036,1740823628588,-500.0,0.00032876,2]
[354925037,1740823628610,-500.0,0.00032876,2]
[354925038,1740823628631,-1584.33,0.00032876,2]
[354925039,1740823628654,-508.91,0.00032876,2]
[354925040,1740823628675,-500.0,0.00032876,2]
[354925041,1740823628695,-151.0,0.00032876,7]
[354925042,1740823628716,-987.23,0.00032876,2]
[354925043,1740823628738,-151.0,0.00032876,7]
[354925044,1740823628763,-500.0,0.00032876,2]
[354925045,1740823628785,-151.0,0.00032876,7]
[354925046,1740823628806,-151.0,0.00032876,7]
[354925047,1740823628828,-212.34674035,0.00032876,2]
[354925048,1740823628849,-500.0,0.00032876,2]
[354925049,1740823628923,-500.0,0.00032876,2]
[354925050,1740823628945,-500.0,0.00032876,2]
[354925051,1740823628966,-500.0,0.00032876,2]
[354925052,1740823628988,-524.59,0.00032876,2]
[354925053,1740823629009,-500.0,0.00032876,2]
[354925054,1740823629030,-500.0,0.00032876,2]
[354925055,1740823629051,-500.0,0.00032876,2]
[354925056,1740823629071,-500.0,0.00032876,2]
[354925057,1740823629092,-541.38,0.00032876,2]
[354925058,1740823629114,-500.0,0.00032876,2]
[354925059,1740823629135,-151.0,0.00032876,7]
[354925060,1740823629156,-151.0,0.00032876,7]
[354925061,1740823629177,-151.0,0.00032876,7]
[354925062,1740823629198,-151.0,0.00032876,7]
[354925063,1740823629219,-151.0,0.00032876,7]
[354925064,1740823629240,-151.0,0.00032876,7]
[354925065,1740823629262,-151.0,0.00032876,7]
[354925066,1740823629283,-151.0,0.00032876,7]
[354925067,1740823629305,-151.0,0.00032876,7]
[354925068,1740823629326,-151.0,0.00032876,7]
[354925069,1740823629348,-500.0,0.00032876,2]
[354925070,1740823629369,-500.0,0.00032876,2]
[354925071,1740823629391,-151.0,0.00032876,7]
[354925072,1740823629414,-151.0,0.00032876,7]
[354925073,1740823629435,-151.0,0.00032876,7]
[354925074,1740823629455,-151.0,0.00032876,7]
[354925075,1740823629476,-500.0,0.00032876,2]
[354925076,1740823629497,-340.808483,0.00032876,7]
[354925077,1740823629518,-340.808483,0.00032876,7]
[354925078,1740823629538,-340.808483,0.00032876,7]
[354925079,1740823629559,-579.75,0.00032876,2]
[354925080,1740823629581,-801.18,0.00032876,2]
[354925081,1740823629601,-340.808483,0.00032876,7]
[354925082,1740823629622,-340.808483,0.00032876,7]
[354925083,1740823629643,-340.808483,0.00032876,7]
[354925084,1740823629664,-650.53,0.00032876,2]
[354925085,1740823629685,-500.0,0.00032876,2]
[354925086,1740823629705,-500.0,0.00032876,2]
[354925087,1740823629726,-500.0,0.00032876,2]
[354925088,1740823629752,-983.56,0.00032876,2]
[354925089,1740823629773,-500.0,0.00032876,2]
[354925090,1740823629795,-1059.15,0.00032876,2]
[354925091,1740823629817,-500.0,0.00032876,2]
[354925092,1740823629840,-500.0,0.00032876,2]
[354925093,1740823629861,-500.0,0.00032876,2]
[354925094,1740823629883,-500.0,0.00032876,2]
[354925095,1740823629907,-500.0,0.00032876,2]
[354925096,1740823629928,-151.0,0.00032876,7]
[354925097,1740823629950,-151.0,0.00032876,7]
[354925098,1740823629971,-298.554664,0.00032876,7]
[354925099,1740823629991,-180.91030963,0.00032876,2]
[354925100,1740823630013,-500.0,0.00032876,2]
[354925101,1740823630034,-500.0,0.00032876,2]
[354925102,1740823630055,-540.17,0.00032876,2]
[354925103,1740823630076,-500.0,0.00032876,2]
[354925104,1740823630098,-500.0,0.00032876,2]
[354925105,1740823630118,-521.05988856,0.00032876,2]
[354925106,1740823630140,-500.0,0.00032876,2]
[354925107,1740823630162,-500.0,0.00032876,2]
[354925108,1740823630183,-500.0,0.00032876,2]
[354925109,1740823630205,-206.52979085,0.00032876,2]
[354925110,1740823630306,-293.47020915,0.00032876,2]
[354925111,1740823630328,-500.0,0.00032876,2]
[354925112,1740823630350,-151.0,0.00032876,7]
[354925113,1740823630372,-151.0,0.00032876,7]
[354925114,1740823630394,-151.0,0.00032876,7]
[354925115,1740823630414,-151.0,0.00032876,7]
[354925116,1740823630435,-151.0,0.00032876,7]
[354925117,1740823630455,-151.0,0.00032876,7]
[354925118,1740823630476,-1088.99,0.00032876,2]
[354925119,1740823630503,-151.0,0.00032876,7]
[354925120,1740823630523,-557.74160315,0.00032876,2]
[354925121,1740823630544,-500.0,0.00032876,2]
[354925122,1740823630565,-152.273123,0.00032876,7]
[354925123,1740823630587,-316.62261426,0.00032876,2]
[354925124,1740823648574,500.0,0.00028,30]
[354925125,1740823649450,500.0,0.00028,30]
[354925126,1740823650123,500.0,0.00028,30]
[354925127,1740823650182,-276.36820644,0.00031,10]
[354925131,1740823673526,336.30209249,0.000285,60]
[354925163,1740823775102,534.30209249,0.00029,60]
[354925207,1740823834701,-400.0,0.00030999,2]
[354925209,1740823834711,-144.55925767,0.00031,10]
[354925211,1740823834721,-500.0,0.00031,10]
[354925213,1740823834731,-500.0,0.00031,10]
[354925215,1740823834741,-500.0,0.00031,10]
[354925217,1740823834751,-500.0,0.00031,10]
[354925218,1740823834760,-24900.0,0.00031195,2]
[354925220,1740823834769,-153.631028,0.00031258,15]
[354925222,1740823834779,-153.631028,0.00031897,15]
[354925224,1740823834788,-482.8596345,0.00032218,4]
[354925226,1740823834798,-153.631028,0.00032524,14]
[354925228,1740823834813,-153.631028,0.00032536,15]
[354925230,1740823834834,-153.631028,0.00032536,14]
[354925232,1740823834855,-800.0,0.0003262,2]
[354925234,1740823834869,-800.0,0.00032636,2]
[354925236,1740823834879,-198.636015,0.00032676,2]
[354925238,1740823834887,-500.0,0.00032775,2]
[354925240,1740823834897,-258.31710245,0.00032775,2]
[354925241,1740823834905,-19459.56385499,0.00032776,2]
[354925250,1740823834971,-2953.11120928,0.00032776,2]
[354925280,1740823838271,-106534.00947648,0.00032776,2]
[354925281,1740823838461,-496.23306106,0.00032776,2]
[354925282,1740823838477,-92557.08239819,0.00032776,2]
[354925283,1740823838486,-3000.0,0.00032776,2]
[354925284,1740823838496,-150.0,0.000328,2]
[354925285,1740823838506,-350.0,0.00032843,7]
[354925286,1740823838515,-350.0,0.00032843,7]
[354925287,1740823838525,-350.0,0.00032843,7]
[354925288,1740823838534,-350.0,0.00032843,7]
[354925289,1740823838544,-350.0,0.00032843,7]
[354925290,1740823838553,-350.0,0.00032843,7]
[354925291,1740823838562,-350.0,0.00032843,7]
[354925292,1740823838572,-350.0,0.00032843,7]
[354925293,1740823838581,-350.0,0.00032843,7]
[354925294,1740823838590,-350.0,0.00032843,7]
[354925295,1740823838599,-350.0,0.00032843,7]
[354925296,1740823838609,-350.0,0.00032843,7]
[354925297,1740823838618,-350.0,0.00032843,7]
[354925298,1740823838627,-350.0,0.00032843,7]
[354925299,1740823838636,-350.0,0.00032843,7]
[354925300,1740823838646,-350.0,0.00032843,7]
[354925301,1740823838656,-350.0,0.00032843,7]
[354925302,1740823838665,-350.0,0.00032843,7]
[354925303,1740823838674,-350.0,0.00032843,7]
[354925304,1740823838684,-350.0,0.00032843,7]
[354925305,1740823838694,-350.0,0.00032843,7]
[354925306,1740823838703,-350.0,0.00032843,7]
[354925307,1740823838712,-350.0,0.00032843,7]
[354925308,1740823838722,-350.0,0.00032843,7]
[354925309,1740823838732,-500.0,0.00032856,2]
[354925310,1740823838742,-800.0,0.00032871,2]
[354925311,1740823838751,-291.43108274,0.00032873,5]
[354925312,1740823838761,-500.0,0.00032873,5]
[354925313,1740823838770,-500.0,0.00032873,5]
[354925314,1740823838780,-500.0,0.00032873,5]
[354925315,1740823838789,-500.0,0.00032873,5]
[354925316,1740823838798,-500.0,0.00032873,5]
[354925317,1740823838808,-500.0,0.00032873,5]
[354925318,1740823838817,-500.0,0.00032873,5]
[354925319,1740823838831,-500.0,0.00032873,5]
[354925320,1740823838841,-500.0,0.00032873,5]
[354925321,1740823838850,-500.0,0.00032873,3]
[354925322,1740823838860,-257.07655054,0.00032875,2]
[354925323,1740823838871,-183.37738574,0.00032876,2]
[354925324,1740823838880,-483.119469,0.00032876,7]
[354925325,1740823838890,-483.119469,0.00032876,7]
[354925326,1740823838995,-483.119469,0.00032876,7]
[354925327,1740823839066,-483.119469,0.00032876,7]
[354925328,1740823839076,-500.0,0.00032876,2]
[354925329,1740823839086,-483.119469,0.00032876,7]
[354925330,1740823839095,-483.119469,0.00032876,7]
[354925331,1740823839104,-483.119469,0.00032876,7]
[354925332,1740823839114,-483.119469,0.00032876,7]
[354925333,1740823839123,-500.0,0.00032876,2]
[354925334,1740823839132,-500.0,0.00032876,2]
[354925335,1740823839142,-508.704561,0.00032876,7]
[354925336,1740823839151,-508.704561,0.00032876,7]
[354925337,1740823839160,-508.704561,0.00032876,7]
[354925338,1740823839170,-508.704561,0.00032876,7]
[354925339,1740823839179,-508.704561,0.00032876,7]
[354925340,1740823839188,-508.704561,0.00032876,7]
[354925341,1740823839197,-508.704561,0.00032876,7]
[354925342,1740823839207,-508.704561,0.00032876,7]
[354925343,1740823839217,-500.0,0.00032876,2]
[354925344,1740823839226,-500.0,0.00032876,2]
[354925345,1740823839235,-518.42023982,0.00032876,2]
[354925346,1740823839245,-509.6681462,0.00032876,2]
[354925347,1740823839254,-500.0,0.00032876,2]
[354925348,1740823839263,-500.0,0.00032876,2]
[354925349,1740823839272,-500.0,0.00032876,2]
[354925350,1740823839281,-542.34,0.00032876,2]
[354925351,1740823839291,-500.0,0.00032876,2]
[354925352,1740823839300,-500.0,0.00032876,2]
[354925353,1740823839309,-500.0,0.00032876,2]
[354925354,1740823839318,-500.0,0.00032876,2]
[354925355,1740823839328,-500.0,0.00032876,2]
[354925356,1740823839337,-500.0,0.00032876,2]
[354925357,1740823839347,-394.702975,0.00032876,7]
[354925358,1740823839356,-394.702975,0.00032876,7]